bitfinex/quotes_ETHUSD_20240820
["timestamp","ask_amount","ask_price","bid_price","bid_amount"]
[1724113995187,4.432,2669.0,2668.3,0.3754]
[1724113995487,4.432,2669.0,2668.4,35.0]
[1724113995672,4.432,2669.0,2668.4,38.53754]
[1724113996264,0.005,2669.0,2668.4,38.53754]
[1724113996987,4.6281,2668.9,2668.4,38.53754]
[1724113997150,4.6281,2668.9,2667.9,0.3754]
[1724113997347,4.6281,2668.9,2667.9,2.99916]
[1724113997586,4.6281,2668.9,2668.1,0.3754]
[1724113997785,4.6281,2668.9,2668.3,0.3754]
[1724113998777,4.432,2669.0,2668.4,2.62328]
[1724113999088,4.432,2669.0,2668.3,0.3754]
[1724114000295,4.432,2669.0,2668.3,2.99879]
[1724114000496,4.432,2669.0,2668.3,0.3754]
[1724114000800,4.432,2669.0,2668.4,0.683633]
[1724114001214,0.005,2669.1,2668.5,5.0445]
[1724114001355,0.004,2670.0,2668.6,3.07461013]
[1724114001705,0.004,2670.0,2669.9,41.42364]
[1724114001909,0.004,2670.0,2669.9,79.63858201]
[1724114002207,0.004,2670.0,2669.9,68.8868632]
[1724114002358,4.427,2670.5,2669.9,18.70669833]
[1724114002680,4.427,2670.5,2670.0,3.0]
[1724114002881,4.427,2670.5,2669.3,1.51251805]
[1724114002882,4.427,2670.5,2669.6,35.0]
[1724114003056,4.427,2670.5,2669.7,3.0]
[1724114003257,4.427,2670.5,2669.8,0.56221]
[1724114003457,4.427,2670.5,2669.8,0.93761]
[1724114003683,2.1296875,2671.9,2668.7,0.75551795]
[1724114003684,9.4346,2669.9,2668.7,0.75551795]
[1724114003888,9.4346,2669.9,2668.7,2.62298]
[1724114004098,9.4346,2669.9,2668.9,2.6228]
[1724114004261,9.4346,2669.9,2668.9,2.69740597]
[1724114004463,9.4346,2669.9,2669.0,0.3754]
[1724114004801,9.4346,2669.9,2669.1,0.29982]
[1724114004988,9.4346,2669.9,2668.7,0.3754]
[1724114005492,4.427,2669.4,2668.4,1.059033]
[1724114005696,9.4346,2669.9,2668.4,5.0445]
[1724114005895,4.9101,2670.4,2668.9,0.3754]
[1724114006069,4.9101,2670.4,2669.0,0.07458644]
[1724114006267,4.9101,2670.4,2668.9,5.69556817]
[1724114006493,4.9101,2670.4,2669.1,0.07458817]
[1724114006696,4.427,2670.5,2669.8,2.62186]
[1724114006894,4.9101,2671.0,2669.8,2.62186]
[1724114006895,9.3371,2671.0,2669.8,2.69639028]
[1724114007107,9.3371,2671.0,2670.1,2.62153]
[1724114007394,4.427,2671.0,2670.3,0.3754]
[1724114007615,4.427,2671.0,2670.3,2.99678]
[1724114007815,4.427,2671.0,2670.5,2.62121]
[1724114008809,9.1793,2671.5,2670.8,2.62093]
[1724114008974,9.1793,2671.5,2670.8,2.69539302]
[1724114009518,9.1793,2671.5,2670.8,2.62093]
[1724114009715,9.1793,2671.5,2670.9,0.262093]
[1724114009877,9.1793,2671.5,2670.7,2.621]
[1724114010073,4.427,2671.5,2670.8,3.44986327]
[1724114010390,4.427,2671.5,2670.4,0.599678]
[1724114010391,4.427,2671.0,2670.4,0.599678]
[1724114010713,4.427,2671.0,2670.5,0.3599678]
[1724114010921,4.427,2671.0,2670.0,3.0]
[1724114011271,4.427,2671.0,2669.9,2.62181]
[1724114011272,4.427,2670.5,2669.3,0.3754]
[1724114011413,4.427,2670.5,2669.5,4.0]
[1724114011774,4.427,2670.5,2669.3,0.3754]
[1724114011775,5.1796,2670.4,2669.3,0.3754]
[1724114012387,4.427,2670.5,2669.2,0.26972682]
[1724114012388,4.427,2670.5,2669.4,0.44996951]
[1724114012592,5.1796,2670.7,2669.7,2.62201]
[1724114012831,5.1796,2670.7,2669.4,0.3754]
[1724114013108,5.1796,2670.7,2668.7,0.3754]
[1724114013109,5.1796,2670.0,2668.7,0.3754]
[1724114013310,5.1796,2670.0,2668.8,3.4093054]
[1724114013531,4.427,2670.1,2668.8,3.4093054]
[1724114013532,4.427,2670.1,2669.2,2.62241]
[1724114013735,4.427,2670.1,2669.3,2.6224]
[1724114013934,4.427,2670.1,2669.4,0.26224]
[1724114014138,4.427,2669.4,2668.4,0.3754]
[1724114014337,4.427,2668.9,2667.7,1.88870567]
[1724114014537,4.427,2668.4,2667.8,35.0]
[1724114014854,4.427,2668.4,2667.9,3.5]
[1724114015634,5.1796,2669.3,2667.9,3.5]
[1724114015635,4.427,2668.9,2667.9,3.57472596]
[1724114015833,4.427,2668.9,2668.1,2.62358]
[1724114016045,4.427,2668.9,2668.0,0.3754]
[1724114016262,4.427,2668.9,2667.9,3.5]
[1724114016561,4.427,2668.9,2668.0,2.92691948]
[1724114016948,4.8593,2668.8,2668.1,0.07469003]
[1724114017279,4.8593,2668.8,2667.7,2.62398]
[1724114017280,4.8593,2668.3,2666.8,5.1163]
[1724114017572,4.8593,2668.3,2667.7,35.0]
[1724114017725,4.8593,2668.3,2667.8,3.53754]
[1724114017726,4.427,2667.9,2667.8,3.53754]
[1724114017925,4.427,2667.9,2666.1,1.51251805]
[1724114017926,4.8593,2667.8,2666.1,0.75551795]
[1724114018139,4.427,2666.8,2665.7,0.75551795]
[1724114018338,4.427,2666.8,2665.8,35.0]
[1724114018544,4.427,2666.3,2665.9,3.5]
[1724114018847,4.427,2666.3,2664.3,0.75551795]
[1724114018848,4.8593,2666.2,2664.3,0.75551795]
[1724114019030,4.427,2665.8,2664.4,0.29031659]
[1724114019222,4.427,2665.8,2664.6,2.62702]
[1724114019427,4.427,2665.8,2664.7,0.07495219]
[1724114019629,4.427,2665.8,2664.8,2.62675]
[1724114019930,7.0511,2667.6,2664.8,2.62675]
[1724114019931,4.427,2666.3,2665.1,2.6265]
[1724114020164,4.427,2666.3,2665.2,37.62642]
[1724114020370,2.62379,2667.9,2665.3,0.77489752]
[1724114020374,5.0871,2667.9,2665.3,0.77489752]
[1724114020681,5.0871,2667.9,2666.5,2.62516]
[1724114020833,5.0871,2667.9,2666.7,2.62494]
[1724114021029,5.0871,2667.9,2666.8,3.07477483]
[1724114021230,5.0871,2667.9,2666.9,35.0]
[1724114021476,5.0871,2667.9,2666.5,3.0]
[1724114021629,5.0871,2667.9,2666.6,0.3]
[1724114021829,4.427,2667.1,2666.7,35.0]
[1724114022371,3.03642883,2667.1,2666.7,35.0]
[1724114022928,4.427,2667.6,2666.7,35.0]
[1724114023269,4.427,2667.6,2666.7,37.62495]
[1724114023965,4.427,2667.6,2666.8,0.07479067]
[1724114024139,4.427,2667.6,2666.9,2.58675473]
[1724114024340,4.427,2667.6,2667.0,2.69944193]
[1724114024543,4.427,2668.1,2667.1,5.62457]
[1724114024970,4.427,2668.1,2667.3,2.62437]
[1724114025173,5.0913,2669.0,2667.4,5.62427]
[1724114025373,4.427,2668.5,2667.8,2.62381]
[1724114025574,4.427,2668.5,2667.5,0.562427]
[1724114025732,4.427,2668.5,2667.7,2.62397]
[1724114026071,4.427,2668.5,2667.9,35.0]
[1724114027046,4.427,2668.5,2667.9,37.62378]
[1724114027247,4.427,2668.5,2668.0,3.27773775]
[1724114027449,4.427,2669.0,2668.0,3.27773775]
[1724114027651,4.427,2669.0,2668.1,3.0]
[1724114028156,4.427,2669.0,2668.1,5.62356]
[1724114028585,4.427,2669.0,2668.2,2.62347]
[1724114028871,4.427,2669.0,2668.3,0.824703]
[1724114029075,4.427,2669.0,2668.3,6.448073]
[1724114029275,4.427,2669.5,2668.6,2.62301]
[1724114029582,4.427,2669.5,2668.7,3.3754]
[1724114029789,4.427,2669.5,2668.7,0.3754]
[1724114029950,4.427,2669.5,2668.8,35.299848]
[1724114031169,4.427,2669.5,2668.8,0.299848]
[1724114031494,4.427,2669.5,2667.7,0.3754]
[1724114031495,9.4218,2669.0,2667.7,0.3754]
[1724114031652,4.427,2668.4,2667.3,35.0]
[1724114031855,4.427,2668.4,2667.1,2.6245]
[1724114032064,4.427,2667.9,2667.0,3.38009795]
[1724114032281,4.427,2667.9,2667.1,0.3380098]
[1724114032483,4.427,2667.9,2666.9,35.0]
[1724114032654,4.9948,2668.1,2666.7,3.00036]
[1724114032655,4.427,2667.4,2666.7,3.00036]
[1724114032865,4.427,2667.4,2666.7,0.3754]
[1724114033068,4.427,2667.4,2666.4,0.3754]
[1724114033383,4.427,2667.4,2666.4,3.07546114]
[1724114033571,4.427,2667.4,2666.6,0.3754]
[1724114033906,4.427,2667.4,2666.6,3.00046]
[1724114034199,4.427,2667.4,2666.8,0.3754]
[1724114036095,4.427,2667.4,2666.3,0.3754]
[1724114037104,5.0722,2667.3,2666.2,35.0]
[1724114037396,5.0722,2667.3,2666.3,3.5]
[1724114037699,5.0722,2667.3,2666.5,0.3754]
[1724114037873,4.427,2666.9,2666.3,3.5]
[1724114038057,4.427,2666.9,2666.4,2.92691948]
[1724114038390,4.427,2666.9,2666.5,0.3754]
[1724114039175,4.427,2666.9,2666.5,0.3254]
[1724114039377,4.427,2666.9,2666.0,35.0]
[1724114039702,4.427,2666.9,2666.1,2.62555]
[1724114040276,4.427,2666.9,2666.2,2.62545]
[1724114040480,4.427,2666.9,2666.3,0.5251]
[1724114040681,4.427,2666.9,2666.1,3.0]
[1724114040887,3.0,2668.3,2665.2,0.3754]
[1724114040888,4.427,2666.4,2665.2,0.3754]
[1724114041356,4.427,2665.9,2665.3,35.0]
[1724114041478,3.64443415,2665.9,2665.3,35.0]
[1724114041802,3.64443415,2665.9,2665.5,0.3754]
[1724114042107,7.05113,2667.6,2665.5,0.3754]
[1724114042108,4.427,2666.4,2665.7,2.62593]
[1724114042275,0.7,2669.2,2665.5,0.3754]
[1724114042276,9.4976,2667.0,2666.1,2.62548]
[1724114042474,4.427,2667.0,2666.2,2.70030499]
[1724114042675,4.427,2667.0,2666.3,0.5325785]
[1724114042891,4.427,2667.0,2666.4,0.3754]
[1724114043110,4.427,2667.0,2666.4,35.3754]
[1724114043467,4.427,2667.0,2666.4,38.00064]
[1724114043665,4.427,2667.0,2666.5,3.0]
[1724114043868,4.427,2667.0,2666.6,2.35680098]
[1724114044068,4.427,2667.0,2666.5,3.0]
[1724114044279,4.427,2667.0,2666.4,0.3754]
[1724114044889,0.05,2669.2,2666.5,35.0]
[1724114044890,4.427,2667.5,2666.5,35.0]
[1724114045091,4.427,2667.5,2666.6,3.3754]
[1724114045293,4.427,2667.5,2666.8,2.62486]
[1724114045607,4.427,2668.0,2667.1,0.3754]
[1724114046281,4.427,2668.0,2667.1,3.3754]
[1724114046684,4.427,2668.0,2667.2,35.0]
[1724114047212,4.427,2669.5,2667.3,0.07477061]
[1724114047213,5.0458,2668.9,2667.3,0.07477061]
[1724114047382,5.0458,2668.9,2667.9,2.62377]
[1724114047583,5.0458,2668.9,2668.0,3.0]
[1724114047783,5.0458,2668.9,2668.1,35.0]
[1724114048282,5.0458,2668.9,2668.0,3.0]
[1724114048493,4.427,2668.4,2667.8,3.3754]
[1724114048696,4.427,2668.4,2667.9,0.33754]
[1724114048900,5.0458,2668.9,2668.0,35.0]
[1724114048901,9.4728,2668.9,2668.0,35.0]
[1724114049102,4.427,2668.9,2668.1,3.0]
[1724114049655,4.9764,2669.3,2667.9,3.0]
[1724114049656,4.427,2668.4,2667.9,3.0]
[1724114049780,4.427,2668.9,2667.5,2.62414]
[1724114049990,4.427,2668.9,2667.6,40.886484]
[1724114050299,4.427,2668.9,2667.6,38.262414]
[1724114050784,4.427,2668.4,2667.6,40.886464]
[1724114051121,4.427,2668.9,2668.0,2.62367]
[1724114051323,4.427,2668.9,2668.1,3.262367]
[1724114051522,4.427,2668.9,2668.2,0.3754]
[1724114051684,4.427,2668.9,2668.2,2.9988]
[1724114051887,4.427,2668.9,2668.4,0.3754]
[1724114052101,4.427,2668.9,2668.5,0.33754]
[1724114052327,4.427,2668.9,2668.4,0.3754]
[1724114052813,4.427,2668.9,2668.2,0.3754]
[1724114054190,4.427,2668.9,2667.6,35.262414]
[1724114054495,4.427,2668.4,2667.6,0.262414]
[1724114054697,4.427,2668.4,2667.8,2.6238]
[1724114054902,4.427,2668.4,2667.7,0.2886564]
[1724114055196,4.427,2668.4,2666.9,5.95118772]
[1724114055197,4.427,2667.9,2667.0,0.3754]
[1724114055402,4.427,2667.9,2667.1,35.3754]
[1724114055925,4.427,2667.9,2666.5,2.62514]
[1724114055926,4.427,2667.4,2666.4,0.75551795]
[1724114056223,4.427,2667.4,2666.7,0.3754]
[1724114056939,4.427,2667.4,2666.7,6.80896636]
[1724114057334,4.427,2667.4,2666.9,0.3754]
[1724114057541,4.8926,2668.9,2667.0,2.62466]
[1724114057762,4.427,2667.9,2667.1,0.0747817]
[1724114058074,4.427,2667.9,2667.1,2.6993417]
[1724114058269,4.427,2667.9,2667.2,3.60747417]
[1724114058646,4.427,2667.9,2667.2,6.23193417]
[1724114059376,4.427,2669.2,2667.6,0.75551795]
[1724114059535,4.427,2669.2,2668.1,0.75551795]
[1724114059736,4.427,2669.2,2668.2,35.0]
[1724114060074,4.427,2669.2,2668.4,0.3754]
[1724114060755,4.427,2669.2,2668.4,2.99866]
[1724114061113,4.427,2669.2,2668.4,0.3754]
[1724114062312,4.427,2669.2,2668.6,2.62309]
[1724114062459,4.427,2669.2,2668.5,5.1903]
[1724114062460,3.03753262,2669.2,2668.5,5.1903]
[1724114062680,3.03753262,2669.2,2668.6,6.45060058]
[1724114062960,3.03753262,2669.2,2668.7,2.62298]
[1724114063364,3.03753262,2669.2,2668.8,2.62289]
[1724114063589,4.427,2669.7,2668.7,2.62296]
[1724114063776,4.427,2669.7,2668.8,3.64504806]
[1724114063977,5.3476,2670.0,2669.1,2.62253]
[1724114064180,4.427,2670.2,2669.1,2.62253]
[1724114064181,4.427,2670.2,2669.2,0.07461026]
[1724114064365,4.427,2670.2,2669.3,2.62237]
[1724114064568,4.427,2670.2,2669.2,3.0]
[1724114064569,4.427,2670.2,2669.2,5.62249]
[1724114064778,4.427,2670.2,2669.3,35.3]
[1724114066005,4.427,2670.2,2668.8,0.64504806]
[1724114066006,4.427,2669.7,2668.8,0.64504806]
[1724114066293,4.427,2669.7,2668.9,3.92509376]
[1724114066496,4.427,2669.7,2668.6,3.53672372]
[1724114066698,4.427,2669.2,2668.6,0.82752058]
[1724114066999,4.427,2669.2,2668.5,0.3754]
[1724114067902,4.8741,2669.6,2668.5,2.99856]
[1724114068087,4.427,2669.7,2668.9,2.62271]
[1724114068286,4.427,2669.7,2668.6,2.62305]
[1724114068492,4.427,2669.7,2668.5,0.3754]
[1724114068662,4.427,2669.7,2668.6,3.53754]
[1724114069299,4.427,2669.7,2668.7,2.62297]
[1724114069802,4.427,2669.7,2668.6,6.16054]
[1724114069803,4.9859,2670.1,2669.1,2.62258]
[1724114070104,4.427,2670.2,2669.3,2.6224]
[1724114070415,4.427,2670.2,2669.4,3.0]
[1724114070564,4.427,2670.2,2669.4,5.62229]
[1724114070764,4.427,2670.2,2669.4,5.69687602]
[1724114071103,4.427,2670.2,2669.5,2.6222]
[1724114071265,4.427,2670.2,2669.6,0.5696786]
[1724114071693,4.7496075,2671.9,2670.0,0.3754]
[1724114071694,4.427,2670.7,2670.0,0.3754]
[1724114072028,5.2676,2671.3,2670.1,2.69612]
[1724114072029,4.427,2671.2,2670.1,2.69612]
[1724114072191,4.427,2671.2,2670.3,2.62135]
[1724114072393,4.427,2671.2,2670.3,0.3754]
[1724114073439,4.427,2671.2,2670.4,35.0]
[1724114073994,4.427,2671.2,2670.6,2.6211]
[1724114074191,4.427,2671.2,2670.5,3.0]
[1724114074515,5.3545,2671.1,2670.3,0.3754]
[1724114074702,5.3545,2671.1,2669.9,0.3754]
[1724114074907,5.3545,2671.1,2670.1,0.3754]
[1724114075311,5.3545,2671.1,2668.1,0.75738379]
[1724114075312,38.65,2669.3,2668.1,0.75738379]
[1724114075458,38.65,2669.3,2666.6,0.75738379]
[1724114075459,2.62284,2668.9,2666.6,0.75738379]
[1724114075772,0.05,2669.3,2666.5,2.62516]
[1724114075773,4.427,2667.5,2666.5,2.62516]
[1724114075987,4.427,2667.5,2666.7,0.0747811]
[1724114076116,4.427,2667.5,2666.7,2.6249]
[1724114076117,2.34176409,2667.5,2666.7,2.6249]
[1724114076318,2.34176409,2667.5,2666.9,2.62475]
[1724114076623,4.427,2668.0,2667.0,5.504075]
[1724114076919,4.427,2668.0,2667.2,2.62445]
[1724114077131,4.427,2668.0,2667.3,35.07475333]
[1724114077346,4.427,2668.5,2667.4,0.59850849]
[1724114077631,0.05,2670.8,2667.4,0.59850849]
[1724114077632,4.427,2669.0,2667.9,5.2416]
[1724114077830,4.427,2669.0,2668.0,0.45008357]
[1724114078034,4.427,2669.0,2668.1,0.56916836]
[1724114078228,4.427,2669.0,2668.2,0.3754]
[1724114078527,4.427,2668.5,2668.1,0.56916836]
[1724114078940,4.427,2668.5,2667.3,35.0]
[1724114079145,4.427,2668.0,2667.2,5.2416]
[1724114079525,4.427,2668.0,2667.2,5.617]
[1724114079784,4.427,2668.0,2667.3,0.5237563]
[1724114080132,4.427,2668.0,2667.3,0.8991563]
[1724114080337,4.427,2668.6,2667.4,6.50160672]
[1724114080537,4.427,2668.6,2667.5,6.1479263]
[1724114081465,4.427,2667.6,2667.4,3.87739672]
[1724114081632,3.64506129,2667.6,2667.0,0.262475]
[1724114081836,4.427,2667.1,2666.6,5.309]
[1724114082135,4.427,2667.1,2666.7,35.52367297]
[1724114082338,3.03675795,2667.1,2666.8,0.3754]
[1724114082877,3.03675795,2667.1,2666.9,0.3754]
[1724114083027,4.427,2667.6,2667.1,0.3754]
[1724114083230,4.427,2667.6,2667.2,2.9998]
[1724114083430,4.427,2668.1,2667.3,11.14648]
[1724114083696,4.427,2668.1,2667.4,2.62421]
[1724114083902,4.427,2668.1,2667.3,0.59842207]
[1724114084031,4.427,2668.1,2667.7,2.52398]
[1724114084234,4.427,2668.1,2667.8,0.252398]
[1724114084435,4.427,2668.1,2667.8,2.876198]
[1724114084667,4.427,2668.6,2668.0,0.3754]
[1724114085802,4.427,2668.6,2668.1,15.7055]
[1724114085933,4.427,2669.6,2668.7,2.62293]
[1724114086295,4.427,2669.6,2668.8,0.33692954]
[1724114086582,4.427,2669.6,2668.8,35.33692954]
[1724114086852,4.9207,2670.2,2668.8,35.262293]
[1724114086853,4.427,2670.1,2668.8,35.262293]
[1724114087126,4.427,2670.1,2669.0,0.3754]
[1724114087290,4.427,2670.1,2669.1,3.0725846]
[1724114087493,4.427,2670.1,2669.2,3.0]
[1724114088282,4.427,2670.1,2669.3,2.62234]
[1724114088477,4.427,2670.7,2669.5,2.62214]
[1724114088726,4.427,2670.7,2669.6,3.56967212]
[1724114088926,4.427,2670.7,2669.6,3.19176212]
[1724114089161,4.427,2670.7,2669.7,3.0]
[1724114089278,4.427,2670.7,2669.7,5.62201]
[1724114089479,4.427,2670.7,2669.8,0.88137721]
[1724114089947,4.427,2670.7,2669.9,2.62182]
[1724114090079,4.427,2670.7,2670.0,35.0]
[1724114090607,4.427,2670.2,2669.8,0.88137721]
[1724114090803,4.427,2670.2,2669.6,0.56967212]
[1724114091127,4.427,2670.2,2668.9,2.62277]
[1724114091661,4.427,2670.2,2668.8,2.32885461]
[1724114091662,4.427,2670.2,2669.1,2.6225]
[1724114091845,4.427,2670.2,2669.2,1.30213161]
[1724114092025,4.427,2670.2,2669.3,2.62234]
[1724114092184,4.427,2670.2,2669.3,37.62234]
[1724114092388,4.427,2670.2,2669.4,3.762234]
[1724114092698,4.427,2670.2,2669.5,2.62221]
[1724114092918,4.427,2670.2,2669.6,0.3754]
[1724114093986,4.427,2670.7,2669.7,2.62199]
[1724114094234,4.427,2670.7,2669.6,0.3754]
[1724114094433,4.427,2670.7,2669.7,0.561973]
[1724114095273,4.427,2670.7,2669.6,0.3754]
[1724114095274,4.427,2670.7,2669.8,2.62191]
[1724114095581,4.427,2670.7,2669.6,3.3754]
[1724114095582,4.427,2670.7,2670.1,2.62153]
[1724114096068,5.5403,2671.3,2670.3,2.62142]
[1724114096069,4.427,2671.2,2670.3,2.62142]
[1724114096492,4.427,2671.2,2670.2,3.0]
[1724114096706,4.427,2671.2,2670.3,0.3]
[1724114096842,4.427,2671.2,2669.8,3.0]
[1724114097034,4.427,2671.2,2670.0,2.62166]
[1724114097235,4.427,2671.2,2670.1,3.0]
[1724114097792,4.427,2670.7,2669.8,3.0]
[1724114098016,4.427,2670.7,2669.9,0.33754]
[1724114098196,4.427,2670.7,2669.7,0.3754]
[1724114098700,4.427,2670.7,2669.6,0.3754]
[1724114099039,4.427,2670.7,2669.7,2.622]
[1724114099257,4.427,2670.7,2669.7,0.3754]
[1724114099562,2.62005,2671.7,2669.4,9.222534]
[1724114099563,4.427,2670.2,2669.4,9.222534]
[1724114099764,4.427,2670.2,2669.0,2.62265]
[1724114099962,4.427,2670.2,2669.4,2.62225]
[1724114100274,4.427,2670.2,2669.4,2.62222]
[1724114100595,4.427,2670.2,2669.5,2.62216]
[1724114100782,4.427,2670.2,2669.4,0.3754]
[1724114101086,4.427,2670.2,2669.4,0.675183]
[1724114101239,4.427,2670.2,2669.4,0.3754]
[1724114101442,2.62007,2671.7,2669.4,0.3754]
[1724114101443,4.427,2670.7,2669.5,0.07458963]
[1724114101708,5.1319,2671.0,2669.7,5.6838]
[1724114101992,5.1319,2671.0,2670.0,2.62166]
[1724114102290,4.427,2671.2,2670.4,2.62132]
[1724114102499,4.427,2671.2,2670.5,2.62115]
[1724114102642,4.427,2671.2,2670.4,2.69581585]
[1724114102643,4.427,2671.2,2670.4,2.99672]
[1724114102843,4.427,2671.2,2670.5,3.0]
[1724114103060,4.427,2671.2,2670.3,0.3754]
[1724114103400,4.427,2671.2,2670.5,2.62116]
[1724114103602,5.3743,2671.6,2670.6,3.0]
[1724114104043,5.3743,2671.6,2670.4,6.3342]
[1724114104243,5.3743,2671.6,2670.5,5.24236]
[1724114104573,5.3743,2671.6,2670.6,3.0]
[1724114104892,5.3743,2671.6,2670.7,0.562115]
[1724114107009,5.3743,2671.6,2670.4,0.71294]
[1724114108462,4.427,2670.7,2669.8,3.0339054]
[1724114109244,4.427,2670.7,2669.8,5.6558054]
[1724114109507,4.427,2670.7,2669.8,3.0339054]
[1724114109806,4.427,2671.2,2670.3,2.62136]
[1724114109963,5.2764,2671.5,2670.4,0.262136]
[1724114110169,4.427,2671.2,2670.4,3.637536]
[1724114110793,4.427,2671.2,2670.4,0.637536]
[1724114110971,4.427,2671.2,2669.8,5.6557254]
[1724114110972,4.427,2670.7,2670.0,3.0]
[1724114111150,4.427,2670.7,2669.8,3.0339054]
[1724114111353,9.9679,2670.7,2669.8,3.0339054]
[1724114111664,9.9679,2671.2,2670.3,2.62142]
[1724114111881,9.9679,2671.2,2670.1,2.62157]
[1724114111882,9.9679,2671.2,2670.4,0.262142]
[1724114112095,9.9679,2671.2,2669.9,2.62176]
[1724114112096,4.427,2671.2,2670.5,2.62115]
[1724114112664,4.427,2671.2,2670.6,3.0]
[1724114112861,4.427,2671.2,2670.6,5.62109]
[1724114113069,4.427,2671.2,2670.7,0.824224]
[1724114114414,4.427,2671.2,2670.4,3.3754]
[1724114114723,4.5256027,2671.7,2670.5,5.59889802]
[1724114114865,0.0986027,2671.7,2671.1,2.62057]
[1724114115059,0.0986027,2671.7,2671.2,3.262057]
[1724114115802,0.0986027,2671.7,2671.2,0.262057]
[1724114116094,0.0986027,2671.7,2671.2,2.882577]
[1724114116407,0.0986027,2671.7,2671.2,2.882537]
[1724114116754,0.0986027,2671.7,2671.2,5.342457]
[1724114117014,4.427,2672.7,2671.6,2.62015]
[1724114117220,4.427,2672.7,2671.3,3.8717857]
[1724114117355,0.51591851,2672.6,2671.3,3.8717857]
[1724114117720,0.51591851,2672.6,2671.3,6.4921557]
[1724114117920,0.51591851,2672.6,2671.3,3.8717857]
[1724114118100,9.6535,2672.2,2671.2,0.262057]
[1724114118408,9.6535,2672.2,2670.3,5.2718]
[1724114118409,4.427,2671.7,2670.3,5.2718]
[1724114118620,4.427,2671.7,2670.6,2.62107]
[1724114118909,4.427,2671.7,2670.5,2.62121]
[1724114119221,4.427,2671.7,2670.5,5.24233]
[1724114119361,4.427,2671.7,2670.3,10.88993]
[1724114119559,5.4128,2671.6,2670.3,8.26856]
[1724114119920,5.4128,2671.6,2670.4,2.99672]
[1724114120057,4.427,2671.7,2670.8,2.62093]
[1724114120575,2.1296875,2671.9,2670.9,35.07446987]
[1724114120780,2.1296875,2671.9,2671.4,2.62027]
[1724114120983,2.1296875,2671.9,2671.5,0.262027]
[1724114121181,2.1296875,2671.9,2671.5,3.262027]
[1724114121396,2.1296875,2671.9,2671.5,0.262027]
[1724114121720,1.3490158,2671.9,2671.5,5.882187]
[1724114121862,1.3490158,2671.9,2671.6,0.8502457]
[1724114122381,0.1031586,2671.9,2671.6,0.8502457]
[1724114123412,0.1031586,2671.9,2671.8,2.61995]
[1724114123576,0.1031586,2671.9,2671.8,7.85268]
[1724114123964,0.42236399,2672.6,2672.1,2.6196]
[1724114124166,0.42236399,2672.6,2672.2,0.26196]
[1724114124461,0.42236399,2672.6,2672.2,3.26196]
[1724114124665,0.42236399,2672.6,2672.2,5.88145]
[1724114124920,0.42236399,2672.6,2672.4,2.61936]
[1724114125094,0.42236399,2672.6,2672.5,2.61927]
[1724114125294,0.42236399,2672.6,2672.5,3.180673]
[1724114126013,0.42236399,2672.6,2672.5,11.112143]
[1724114126014,0.02639774,2672.6,2672.5,11.112143]
[1724114126317,0.02639774,2672.6,2672.5,8.873603]
[1724114126706,0.02639774,2672.6,2672.5,35.561403]
[1724114127220,0.02639774,2672.6,2672.5,50.200544]
[1724114127426,0.2,2673.0,2672.8,2.99432]
[1724114127559,0.2,2673.0,2672.9,3.180199]
[1724114127759,0.2,2673.0,2672.9,3.561329]
[1724114128224,0.2,2673.0,2672.9,0.561329]
[1724114128431,2.1296875,2674.3,2673.6,2.61818]
[1724114128624,2.1296875,2674.3,2673.0,0.3754]
[1724114128625,2.1296875,2674.3,2673.7,0.261818]
[1724114128915,2.1296875,2674.3,2673.2,0.3754]
[1724114128916,9.7743,2674.2,2673.2,0.3754]
[1724114129648,4.427,2673.7,2673.0,3.0]
[1724114129919,5.3473,2673.6,2672.5,0.561403]
[1724114130064,4.427,2673.2,2671.9,5.1003]
[1724114130264,0.09353092,2673.1,2671.7,35.0]
[1724114130560,5.1585,2673.0,2671.6,3.4093054]
[1724114130761,4.427,2673.2,2671.8,5.34]
[1724114130965,4.427,2673.2,2672.2,0.3754]
[1724114131469,4.427,2673.2,2672.2,0.44974637]
[1724114131888,4.427,2673.2,2672.2,0.3754]
[1724114132062,4.427,2673.2,2672.3,0.07350493]
[1724114132355,5.2314,2673.1,2672.3,0.07350493]
[1724114132534,0.004,2673.8,2672.3,0.07350493]
[1724114132535,4.427,2672.7,2672.3,0.07350493]
[1724114132748,4.427,2672.7,2671.1,2.62055]
[1724114132749,4.427,2672.7,2671.5,2.62018]
[1724114133059,4.427,2672.7,2671.6,9.17643872]
[1724114133260,4.427,2672.7,2671.6,9.88973949]
[1724114133397,5.2314,2673.1,2671.7,2.75902599]
[1724114133599,5.2314,2673.1,2672.2,2.61949]
[1724114134040,5.2314,2673.1,2672.1,2.61966]
[1724114134041,5.2314,2673.1,2672.3,3.06219099]
[1724114134225,5.2314,2673.1,2672.3,0.06219099]
[1724114135360,5.2314,2673.1,2671.9,3.0]
[1724114135651,5.32493327,2673.1,2672.0,3.8]